bitfinex/quotes_ETHUSD_20260313
["timestamp","ask_amount","ask_price","bid_price","bid_amount"]
[1773444700492,0.47034996,2090.3,2090.1,1.615]
[1773444701094,0.47034996,2090.3,2089.8,0.0011]
[1773444701833,0.47034996,2090.0,2089.5,0.0011]
[1773444702322,0.47034996,2089.8,2089.1,1.19664385]
[1773444702518,0.47034996,2089.6,2089.2,0.47436612]
[1773444704108,0.47034996,2089.6,2089.5,0.0011]
[1773444704321,1.66667771,2089.8,2089.5,0.0011]
[1773444705002,0.47034996,2089.7,2089.5,0.0011]
[1773444707023,1.19631937,2089.8,2089.5,0.0011]
[1773444707199,1.68083054,2089.8,2089.5,0.0011]
[1773444710702,0.48451117,2089.7,2089.5,0.0011]
[1773444712509,1.65464299,2089.8,2089.5,0.0011]
[1773444712913,0.45832362,2089.7,2089.5,0.0011]
[1773444713221,1.19631937,2089.8,2089.5,0.0011]
[1773444713529,1.19631937,2089.8,2089.5,0.47815488]
[1773444713701,1.65464299,2089.8,2089.5,0.47815488]
[1773444714734,0.45832362,2089.7,2089.5,0.0011]
[1773444715331,0.45832362,2089.7,2089.2,0.47815488]
[1773444716530,0.45832362,2089.7,2089.2,0.18595488]
[1773444717533,0.001,2089.6,2089.3,0.47705488]
[1773444717700,0.001,2089.6,2089.5,0.0011]
[1773444720329,0.001,2089.6,2089.5,0.47815488]
[1773444724936,0.001,2089.6,2089.5,1.67461336]
[1773444732159,0.001,2089.6,2089.5,0.47815488]
[1773444732464,0.001,2089.6,2089.5,0.0011]
[1773444734275,0.001,2090.1,2089.5,0.52601321]
[1773444734451,0.001,2090.1,2089.6,0.47705488]
[1773444734655,0.0002,2090.1,2089.6,0.47705488]
[1773444734981,1.65438247,2090.2,2089.7,0.47705488]
[1773444734982,1.65378247,2090.2,2089.7,0.47705488]
[1773444735182,0.45832362,2090.1,2089.8,1.615]
[1773444737237,0.45832362,2090.1,2089.8,2.81128506]
[1773444737764,0.45832362,2090.2,2089.8,3.28833994]
[1773444737960,0.45832362,2090.4,2089.9,0.47705488]
[1773444738952,0.45832362,2090.9,2089.9,0.47705488]
[1773444739148,0.45832362,2090.9,2090.1,0.47705488]
[1773444739657,0.45832362,2090.9,2090.3,0.47705488]
[1773444739835,0.45832362,2090.9,2090.5,0.47705488]
[1773444740047,1.65398134,2090.9,2090.5,0.47705488]
[1773444740549,0.45832362,2090.9,2090.5,0.47705488]
[1773444740951,1.65398296,2090.9,2090.5,0.47705488]
[1773444743868,0.001,2090.7,2090.5,0.47705488]
[1773444744284,0.001,2090.7,2090.6,1.19582894]
[1773444744486,0.001,2090.7,2090.5,1.67290425]
[1773444744770,0.45439076,2090.7,2090.4,1.616]
[1773444744975,0.45439076,2090.7,2090.4,2.81193439]
[1773444746578,0.45439076,2090.7,2090.4,3.28025042]
[1773444749979,0.001,2090.7,2090.5,0.46831603]
[1773444754758,0.001,2090.7,2090.4,2.85977212]
[1773444755090,0.45439076,2090.7,2090.4,1.616]
[1773444755269,0.45439076,2090.7,2090.4,3.28025488]
[1773444756498,0.001,2090.5,2090.4,3.28025488]
[1773444763485,0.001,2090.5,2090.4,3.32809261]
[1773444766616,0.001,2090.7,2090.4,3.32809261]
[1773444766617,0.001,2090.7,2090.5,0.47032656]
[1773444770812,0.001,2090.7,2090.5,1.66617845]
[1773444771012,0.001,2090.7,2090.6,0.49815215]
[1773444774324,0.001,2090.7,2090.5,1.69402364]
[1773444779133,0.001,2090.7,2090.6,0.49815215]
[1773444780316,5.77106741,2091.2,2090.6,0.49815215]
[1773444780317,0.49738452,2091.2,2090.6,0.49815215]
[1773444781205,0.75045294,2091.1,2090.4,2.11525215]
[1773444781405,1.19551053,2091.2,2090.4,1.6171]
[1773444781406,0.49738452,2090.8,2090.4,1.6171]
[1773444781610,0.49738452,2090.5,2090.1,0.0011]
[1773444781811,0.49738452,2090.1,2089.9,0.0011]
[1773444782035,0.49738452,2090.1,2089.6,0.0011]
[1773444783742,0.49738452,2089.9,2089.6,0.0011]
[1773444785919,0.49738452,2089.9,2089.6,0.49925215]
[1773444788325,0.49738452,2089.9,2089.6,0.0011]
[1773444794333,0.49738452,2089.9,2089.6,0.49925215]
[1773444794534,0.49738452,2089.9,2089.5,2.80655385]
[1773444794535,0.49738452,2089.7,2089.5,1.6101]
[1773444794858,0.49738452,2089.7,2089.4,0.0011]
[1773444795045,0.49738452,2089.6,2089.4,0.0011]
[1773444796451,0.49738452,2089.6,2089.5,0.0011]
[1773444797851,1.94678172,2089.8,2089.5,0.0011]
[1773444798154,0.49738452,2089.8,2089.5,0.0011]
[1773444798474,0.49738452,2089.8,2089.5,0.49925215]
[1773444799824,0.49738452,2089.8,2089.5,1.69569805]
[1773444802056,0.45854344,2089.9,2089.6,0.46636022]
[1773444804548,0.45854344,2089.9,2089.6,1.66273279]
[1773444805077,0.45854344,2089.9,2089.6,1.68717215]
[1773444805943,0.45854344,2089.9,2089.6,1.22081193]
[1773444806668,0.45854344,2089.9,2089.6,1.19637257]
[1773444807660,1.65480168,2089.9,2089.6,0.46636022]
[1773444807870,0.45854344,2089.9,2089.6,0.46636022]
[1773444808390,0.001,2089.9,2089.6,0.46636022]
[1773444809281,0.001,2089.9,2089.6,1.66273385]
[1773444809460,0.001,2089.9,2089.7,0.0011]
[1773444812653,0.45854344,2089.9,2089.7,0.0011]
[1773444814081,0.45754344,2089.8,2089.3,0.0011]
[1773444814558,1.19634397,2089.7,2089.3,0.0011]
[1773444814750,0.45754344,2089.6,2089.3,0.0011]
[1773444816380,4.78528435,2089.8,2089.3,0.46746022]
[1773444816381,1.19632081,2089.8,2089.3,0.46746022]
[1773444816578,0.45754344,2089.8,2089.3,0.46746022]
[1773444816752,0.45754344,2089.8,2089.5,0.46636022]
[1773444818066,1.65477314,2089.9,2089.6,2.10336022]
[1773444818882,1.65477314,2089.9,2089.6,1.637]
[1773444818883,0.45854344,2089.9,2089.6,1.637]
[1773444819080,0.45854344,2089.9,2089.6,2.83338703]
[1773444819248,0.45854344,2089.9,2089.6,2.10336022]
[1773444822078,0.45854344,2089.9,2089.6,2.10446022]
[1773444822583,0.001,2089.7,2089.6,2.10446022]
[1773444823363,0.001,2089.7,2089.6,3.30086144]
[1773444823574,0.45754344,2090.3,2089.7,0.46636022]
[1773444823776,0.45754344,2090.2,2089.7,0.46636022]
[1773444824782,1.65363099,2090.2,2089.8,0.46636022]
[1773444825360,0.45754344,2090.2,2089.8,0.46636022]
[1773444825561,4.78387138,2090.4,2089.8,0.46636022]
[1773444825562,1.65353236,2090.4,2089.8,0.46636022]
[1773444825983,1.6544848,2090.5,2089.8,0.46636022]
[1773444826490,0.46738796,2090.4,2089.8,0.46636022]
[1773444826960,0.46738796,2090.3,2089.9,1.65825654]
[1773444828287,0.46838796,2090.5,2090.0,0.46202706]
[1773444828590,0.001,2090.5,2090.0,0.46202706]
[1773444829593,0.001,2090.5,2090.2,0.46202706]
[1773444829793,0.001,2090.5,2090.3,2.10102706]
[1773444830887,0.001,2090.5,2090.3,1.639]
[1773444832196,0.001,2090.5,2090.0,4.78456563]
[1773444832197,0.45371686,2090.5,2090.0,1.66121017]
[1773444832489,0.45371686,2090.5,2090.0,1.53127995]
[1773444833474,0.45371686,2090.5,2090.1,1.64]
[1773444834995,0.45371686,2090.5,2090.1,2.8360926]
[1773444835165,0.45371686,2090.5,2090.1,2.8371926]
[1773444835578,0.001,2090.3,2090.1,2.8371926]
[1773444836076,0.001,2090.3,2090.1,3.30227238]
[1773444836695,0.45271686,2091.0,2090.3,0.46507978]
[1773444837086,0.45271686,2090.9,2090.4,1.66102314]
[1773444838081,0.45271686,2090.7,2090.4,1.66102314]
[1773444838270,0.45271686,2090.7,2090.4,1.19594336]
[1773444839801,0.45271686,2090.7,2090.4,0.46507978]
[1773444841699,0.45271686,2090.5,2090.1,1.19717113]
[1773444841883,0.45271686,2090.5,2090.2,1.641]
[1773444843875,0.45271686,2090.5,2090.2,2.83703608]
[1773444844208,0.45271686,2090.5,2090.2,3.30211586]
[1773444844375,1.64853467,2090.7,2090.3,0.46507978]
[1773444844573,0.45371686,2090.6,2090.3,0.46507978]
[1773444846881,0.45271686,2090.6,2090.3,0.46507978]
[1773444847307,0.001,2090.5,2090.3,0.46507978]
[1773444847705,0.45371686,2090.5,2090.2,1.641]
[1773444848310,0.45371686,2090.3,2090.2,1.641]
[1773444850809,1.64850981,2090.7,2090.3,0.46507978]
[1773444851109,1.64850981,2090.7,2090.3,0.5129198]
[1773444851413,0.45271686,2090.6,2090.3,0.5129198]
[1773444853007,0.001,2090.5,2090.4,0.46507978]
[1773444853197,1.64846632,2090.8,2090.4,0.46507978]
[1773444853198,0.45371686,2090.7,2090.4,0.46507978]
[1773444853804,0.45371686,2090.7,2090.3,0.04784002]
[1773444854008,0.45371686,2090.6,2090.3,0.5129198]
[1773444858711,0.45371686,2090.6,2090.3,1.70891396]
[1773444860313,0.45371686,2090.6,2090.3,0.5129198]
[1773444860700,0.45371686,2090.6,2090.4,0.0011]
[1773444862028,0.45271686,2090.6,2090.4,0.0011]
[1773444864223,0.001,2090.5,2090.4,0.0011]
[1773444866326,1.6653958,2090.8,2090.4,0.46048437]
[1773444866705,0.46967598,2090.7,2090.4,0.46048437]
[1773444871334,0.46967598,2090.7,2090.4,1.65641083]
[1773444871508,0.001,2090.6,2090.4,0.46048437]
[1773444872434,0.001,2090.6,2090.4,0.0011]
[1773444873016,0.47067598,2090.6,2090.4,0.0011]
[1773444873716,0.47067598,2090.6,2090.5,0.0011]
[1773444874936,0.001,2090.6,2090.5,0.0011]
[1773444876838,0.46967598,2091.0,2090.5,0.46048437]
[1773444877038,1.66538447,2090.9,2090.5,0.46048437]
[1773444877334,0.46967598,2090.8,2090.5,0.46048437]
[1773444880523,0.46967598,2090.7,2090.5,0.0011]
[1773444882044,0.001,2090.6,2090.5,0.0011]
[1773444885137,0.001,2090.6,2090.5,0.46048437]
[1773444887646,0.001,2090.6,2090.5,0.0011]
[1773444891164,0.4988754,2090.6,2090.3,0.0011]
[1773444891368,0.4978754,2090.6,2090.1,0.0011]
[1773444891658,0.4978754,2090.3,2089.9,1.6351]
[1773444891856,0.4978754,2090.1,2089.6,0.0011]
[1773444892062,0.4978754,2089.9,2089.6,0.0011]
[1773444893233,0.4978754,2089.8,2089.6,0.0011]
[1773444893429,0.4978754,2090.0,2089.6,0.0033]
[1773444893653,0.4978754,2090.0,2089.6,0.46421786]
[1773444895250,0.4978754,2090.2,2089.8,0.46091786]
[1773444896105,0.4978754,2090.2,2089.7,1.19634397]
[1773444896306,0.4978754,2090.2,2089.8,0.0022]
[1773444896508,0.4978754,2090.0,2089.6,0.0011]
[1773444897298,0.4978754,2089.8,2089.6,0.0011]
[1773444899190,0.4978754,2089.8,2089.6,1.19750122]
[1773444902802,0.04783788,2090.0,2089.6,1.65841908]
[1773444902803,0.54571328,2090.0,2089.6,1.65841908]
[1773444903011,0.4978754,2090.2,2089.7,0.46091786]
[1773444903182,0.54571328,2090.2,2089.7,0.46091786]
[1773444904387,0.54571328,2090.2,2089.8,1.19628672]
[1773444905717,0.4978754,2090.1,2089.8,1.19628672]
[1773444906420,0.4978754,2090.1,2089.8,1.65720458]
[1773444908006,0.4978754,2090.1,2089.8,1.68142161]
[1773444908592,1.69392213,2090.3,2089.9,0.46091786]
[1773444909093,0.4978754,2090.2,2089.9,0.46091786]
[1773444909808,0.54571328,2090.2,2089.9,0.46091786]
[1773444910386,0.54571328,2090.2,2089.8,1.22050375]
[1773444911322,0.54571328,2090.2,2089.8,1.68142161]
[1773444911528,1.74177443,2090.2,2089.8,1.68142161]
[1773444911830,0.4978754,2090.1,2089.8,1.68142161]
[1773444912830,0.4978754,2090.1,2089.9,0.0011]
[1773444913033,0.001,2090.0,2089.9,0.0011]
[1773444914803,0.001,2090.0,2089.9,0.46201786]
[1773444916105,0.001,2090.0,2089.9,2.11101786]
[1773444917543,0.001,2090.0,2089.9,3.30724734]
[1773444918143,0.001,2090.0,2089.9,1.6501]
[1773444918321,0.4988754,2090.0,2089.9,1.6501]
[1773444918724,0.4988754,2090.0,2089.9,2.84632948]
[1773444922032,0.42934315,2090.0,2089.9,2.84632948]
[1773444922334,0.46814844,2090.2,2089.9,2.84632948]
[1773444923668,0.46814844,2090.2,2089.9,1.6501]
[1773444923829,0.46814844,2090.2,2089.9,2.84632207]
[1773444925738,0.46814844,2090.2,2090.0,0.0011]
[1773444929503,0.04783788,2090.3,2090.0,0.0011]
[1773444929798,0.51598632,2090.3,2090.0,0.0011]
[1773444930313,0.51598632,2090.3,2090.0,0.02535092]
[1773444933382,0.51598632,2090.3,2090.0,0.50347072]
[1773444934127,0.51598632,2090.3,2090.0,1.69963932]
[1773444935032,0.46814844,2090.3,2090.0,1.69963932]
[1773444937105,0.46814844,2090.3,2090.0,0.4792198]
[1773444937438,0.46814844,2090.2,2090.0,0.0011]
[1773444937665,0.46814844,2090.2,2089.8,0.0011]
[1773444937949,0.51598632,2090.2,2089.8,0.0011]
[1773444938712,1.19611501,2090.1,2089.8,0.0011]
[1773444938914,0.46814844,2090.0,2089.8,0.0011]
[1773444941645,1.66436028,2090.0,2089.8,0.0011]
[1773444941943,0.46814844,2089.9,2089.8,0.0011]
[1773444942410,0.46814844,2089.9,2089.5,0.0011]
[1773444943829,1.19628672,2089.8,2089.5,0.4792198]
[1773444944009,1.66443516,2089.8,2089.5,0.0011]
[1773444944348,0.46814844,2089.7,2089.5,0.0011]
[1773444945410,4.78492223,2089.9,2089.5,0.4792198]
[1773444945411,1.6644134,2089.9,2089.5,0.4792198]
[1773444945835,0.46814844,2089.8,2089.5,0.4792198]
[1773444946429,0.46814844,2089.8,2089.5,0.0011]
[1773444946625,0.46814844,2089.8,2089.5,1.67375559]
[1773444947028,0.46814844,2089.8,2089.6,0.02425404]
[1773444953255,0.001,2090.1,2089.7,0.46800088]
[1773444953555,0.49424807,2090.3,2089.7,0.46800088]
[1773444955355,0.49424807,2090.3,2089.9,0.46800088]
[1773444955551,0.49424807,2090.3,2089.8,1.19628672]
[1773444955552,0.49424807,2090.3,2090.0,1.657]
[1773444955758,0.49424807,2090.3,2090.0,2.12500088]
[1773444958663,0.49624807,2090.4,2090.1,1.66411589]
[1773444958841,0.49624807,2090.4,2090.1,0.46800088]
[1773444959030,0.49624807,2090.4,2090.0,3.32114243]
[1773444959438,0.49424807,2090.3,2090.0,2.12500088]
[1773444960359,1.6902555,2090.3,2090.0,1.657]
[1773444960567,0.49424807,2090.2,2090.0,1.657]
[1773444968478,1.74007597,2090.4,2090.0,3.32117094]
[1773444968678,0.49624807,2090.4,2090.0,3.32117094]
[1773444968853,0.002,2090.4,2090.1,0.46800088]
[1773444969351,0.49624807,2090.4,2090.1,0.46800088]
[1773444970486,0.49624807,2090.4,2090.1,1.66408711]
[1773444973269,0.002,2090.4,2090.2,0.46800088]
[1773444974254,0.49624807,2090.4,2090.1,0.46800088]
[1773444974973,0.002,2090.4,2090.2,0.46800088]
[1773444976381,0.002,2090.4,2090.1,1.19607666]
[1773444976580,0.49624807,2090.4,2090.1,1.19607666]
[1773444977088,0.49624807,2090.4,2090.1,1.66407754]
[1773444977864,0.49624807,2090.4,2090.2,0.0011]
[1773444978279,1.69223249,2090.4,2090.2,0.0011]
[1773444982596,0.49624807,2090.4,2090.2,0.0011]
[1773444987273,0.002,2090.4,2090.2,0.02532005]
[1773444988189,0.002,2090.9,2090.4,0.45715052]
[1773444988367,0.002,2091.7,2090.3,0.7507418]
[1773444988368,1.66744937,2091.2,2090.5,0.45715052]
[1773444988569,0.47193938,2091.1,2090.7,0.45635052]
[1773444989086,0.47193938,2091.1,2090.7,0.45555052]
[1773444990089,0.47193938,2091.1,2090.8,0.45715052]
[1773444990795,1.66744388,2091.2,2090.8,0.45715052]
[1773444990965,1.71528176,2091.2,2090.8,0.45715052]
[1773444991392,0.51977726,2091.2,2090.8,0.45715052]
[1773444991588,0.47193938,2091.2,2090.8,0.45715052]
[1773444992088,0.001,2090.9,2090.8,0.45715052]
[1773444992266,0.001,2090.9,2090.8,1.65286507]
[1773444992587,0.001,2090.9,2090.8,0.45715052]
[1773444994591,0.001,2090.9,2090.8,1.65286507]
[1773444998277,1.24313802,2091.6,2090.9,0.45715052]
[1773444998597,1.6691738,2091.7,2090.9,0.45715052]
[1773444998912,1.6691738,2091.7,2091.0,1.19560019]
[1773444998913,0.47393938,2091.7,2091.0,1.19560019]
[1773444999065,0.002,2091.7,2091.2,0.45715052]
[1773445001270,0.002,2091.7,2091.3,1.19542868]
[1773445001475,0.002,2091.7,2091.4,0.45715052]
[1773445001798,0.47393938,2091.7,2091.4,0.45715052]
[1773445002772,0.47393938,2091.7,2091.3,0.45715052]
[1773445002977,0.47393938,2091.7,2091.3,1.67]
[1773445003517,0.47193938,2091.6,2091.3,1.67]
[1773445004686,0.002,2091.5,2091.3,1.67]
[1773445004905,0.47393938,2091.5,2091.3,1.67]
[1773445006589,1.6692895,2091.5,2091.3,1.67]
[1773445006900,0.47127023,2091.4,2091.3,1.67]
[1773445009876,0.47127023,2091.3,2090.9,0.45792786]
[1773445010078,0.47127023,2091.3,2091.0,1.671]
[1773445012108,0.48434619,2091.2,2091.0,1.671]
[1773445014088,0.48434619,2091.1,2091.0,1.671]
[1773445016120,0.48434619,2091.1,2090.9,0.001]
[1773445016121,0.48434619,2091.0,2090.9,0.001]
[1773445018109,0.48434619,2090.9,2090.6,0.001]
[1773445018290,0.48434619,2090.9,2090.4,0.001]
[1773445019530,0.48434619,2090.9,2090.4,1.64901017]
[1773445019697,0.48434619,2090.9,2090.5,0.04783544]
[1773445020092,1.68004517,2090.9,2090.5,0.49993062]
[1773445020330,1.68004517,2090.9,2090.6,0.001]
[1773445020529,0.48434619,2090.8,2090.6,0.001]
[1773445021623,0.48434619,2090.7,2090.6,0.001]
[1773445023013,1.68004425,2090.9,2090.6,0.001]
[1773445023522,1.68001965,2090.9,2090.6,0.04883315]
[1773445024797,1.68001965,2090.9,2090.6,0.50092833]
[1773445027751,1.67992545,2091.1,2090.7,0.45209518]
[1773445028734,1.67992545,2091.1,2090.7,0.49992605]
[1773445029240,0.48434619,2091.0,2090.7,0.49992605]
[1773445030853,1.24341714,2091.1,2090.7,0.49992605]
[1773445031459,1.72776333,2091.1,2090.7,0.49992605]
[1773445032237,1.67989535,2091.1,2090.7,1.69568491]
[1773445032442,1.67989535,2091.1,2090.7,0.49992605]
[1773445032637,1.67989535,2091.1,2090.8,0.001]
[1773445032955,1.67989535,2091.1,2090.8,0.04882858]
[1773445033136,0.002,2090.9,2090.8,0.04882858]
[1773445033660,1.197491,2091.2,2090.9,0.45209518]
[1773445033865,0.002,2091.1,2090.8,1.70382858]
[1773445034036,0.48634619,2091.1,2090.8,2.10809518]
[1773445034643,0.48634619,2091.1,2090.8,2.15592376]
[1773445035636,0.002,2091.1,2090.9,0.45209518]
[1773445038267,0.48434619,2091.0,2090.8,1.656]
[1773445038938,0.48634619,2091.1,2090.8,1.656]
[1773445040347,1.68189118,2091.1,2090.8,1.656]
[1773445040575,0.48634619,2091.1,2090.8,2.10809518]
[1773445041287,0.002,2091.1,2090.9,0.47641898]
[1773445042475,0.002,2091.1,2090.9,0.52424527]
[1773445042986,0.002,2091.1,2090.9,1.71988342]
[1773445043187,0.002,2091.1,2090.9,0.52424527]
[1773445043763,0.002,2091.1,2091.0,0.47641898]
[1773445047685,0.002,2091.1,2091.0,0.001]
[1773445048488,0.002,2091.1,2091.0,0.52524298]
[1773445048656,0.47908693,2091.4,2091.0,0.52524298]
[1773445049486,0.47908693,2091.4,2091.1,1.19554301]
[1773445049692,0.47908693,2091.4,2091.1,1.67196199]
[1773445049871,0.47908693,2091.4,2091.1,0.47641898]
[1773445051794,0.47708693,2091.3,2091.0,0.001]
[1773445052388,0.52492481,2091.3,2091.0,0.001]
[1773445053689,0.47708693,2091.1,2091.0,0.001]
[1773445056171,1.67262994,2091.1,2091.0,0.001]
[1773445056991,0.47708693,2091.0,2090.8,0.001]
[1773445058997,0.47708693,2090.9,2090.8,0.001]
[1773445062900,0.47908693,2091.0,2090.8,0.001]
[1773445063199,0.002,2091.0,2090.8,0.47741898]
[1773445063583,0.002,2091.0,2090.8,0.001]
[1773445068385,0.002,2091.0,2090.9,0.51663743]
[1773445069092,0.002,2091.0,2090.9,0.04782629]
[1773445069277,0.002,2091.0,2090.8,0.46981114]
[1773445070301,0.002,2091.0,2090.9,0.04782629]
[1773445070708,0.002,2091.0,2090.9,1.7122948]
[1773445072984,0.002,2091.3,2091.0,0.47680773]
[1773445073414,0.002,2091.3,2090.8,4.78384539]
[1773445073415,0.48981136,2091.2,2090.8,1.67349074]
[1773445074294,0.48981136,2091.2,2090.9,0.47680773]
[1773445074515,0.48981136,2091.2,2091.1,0.001]
[1773445074890,0.002,2091.3,2091.1,0.001]
[1773445075293,0.49181136,2091.3,2091.1,0.001]
[1773445078613,0.002,2091.3,2091.1,0.47780773]
[1773445080219,0.002,2091.4,2091.1,1.1965403]
[1773445080399,0.49181136,2091.4,2091.1,0.001]
[1773445080583,0.49181136,2091.4,2091.2,1.679]
[1773445083309,0.002,2091.4,2091.2,2.20362716]
[1773445083511,0.002,2091.4,2091.3,0.47680773]
[1773445086791,0.002,2091.4,2091.3,1.67223641]
[1773445090398,0.002,2091.4,2091.3,0.47680773]
[1773445090600,0.002,2091.4,2091.2,2.87446705]
[1773445091003,0.002,2091.4,2091.2,3.35127478]
[1773445098328,0.49181136,2091.4,2091.2,2.87446705]
[1773445098635,0.002,2091.4,2091.2,3.35127478]
[1773445098929,0.002,2091.4,2091.3,0.47680773]
[1773445100939,0.002,2091.4,2091.2,2.87445891]
[1773445101117,0.46320546,2091.4,2091.2,1.679]
[1773445102136,0.46320546,2091.4,2091.2,2.8744766]
[1773445104626,0.002,2091.4,2091.2,2.8744766]
[1773445104836,0.002,2091.4,2091.2,3.35145129]
[1773445112749,0.002,2091.4,2091.2,3.35146048]
[1773445113062,0.002,2091.4,2091.2,2.87448579]
[1773445115726,0.46320546,2091.4,2091.2,2.87448579]
[1773445117054,0.002,2091.4,2091.2,2.87448579]
[1773445121060,0.002,2091.4,2091.2,3.35146048]
[1773445122066,0.002,2091.4,2091.3,0.47697469]
[1773445122255,0.002,2091.4,2091.3,0.52479183]
[1773445123072,0.002,2091.4,2091.3,1.72022051]
[1773445125666,0.002,2091.4,2091.3,0.52479183]
[1773445126366,0.002,2091.4,2091.3,1.72022051]
[1773445129769,1.24302333,2091.8,2091.3,1.72022051]
[1773445129770,0.05183788,2091.9,2091.3,1.24324582]
[1773445130064,0.51354011,2091.8,2091.4,0.48179019]
[1773445130259,0.46170223,2091.7,2091.3,1.67717871]
[1773445130453,0.51354011,2091.7,2091.3,1.1954042]
[1773445132068,0.51154011,2091.7,2091.3,1.1954042]
[1773445132595,0.04983788,2091.7,2091.2,3.3562754]
[1773445132741,0.53667346,2091.6,2091.3,1.704]
[1773445132938,0.48483558,2091.6,2091.3,1.704]
[1773445137879,0.05183788,2091.5,2091.3,2.89938154]
[1773445138288,0.53667346,2091.5,2091.3,2.89938154]
[1773445138444,0.53667346,2091.5,2091.3,1.704]
[1773445140470,0.53667346,2091.5,2091.3,1.705]
[1773445140869,0.53667346,2091.5,2091.3,0.001]
[1773445141179,0.53667346,2091.5,2091.3,1.709]
[1773445144369,0.05183788,2091.5,2091.3,3.35453124]
[1773445146879,0.04983788,2091.5,2091.3,3.35453124]
[1773445147074,0.04983788,2091.5,2091.3,1.709]
[1773445148318,0.48483558,2091.6,2091.3,1.709]
[1773445148492,0.05183788,2091.5,2091.3,1.709]
[1773445149920,0.05183788,2091.5,2091.3,2.9044214]
[1773445150893,0.05183788,2091.5,2091.3,2.95223854]
[1773445151308,0.05183788,2091.5,2091.3,3.40234494]
[1773445151605,0.002,2091.7,2091.4,0.4501064]
[1773445151782,0.002,2091.7,2091.6,0.4501064]
[1773445152401,0.002,2091.9,2091.7,0.4501064]
[1773445152602,0.002,2092.2,2092.0,0.4501064]
[1773445152779,0.002,2092.2,2092.1,1.19497155]
[1773445152984,0.002,2092.2,2092.1,1.64507795]
[1773445153385,0.002,2092.4,2092.2,0.4501064]
[1773445154015,0.002,2092.4,2092.3,2.1621064]
[1773445159238,1.6793807,2092.9,2092.4,0.4501064]
[1773445159387,0.48483558,2092.8,2092.4,0.4501064]
[1773445159591,0.48483558,2092.7,2092.3,1.712]
[1773445160317,0.48483558,2092.7,2092.3,2.90685291]
[1773445161701,1.67946942,2092.7,2092.3,3.38051251]
[1773445161919,0.48483558,2092.7,2092.3,3.38051251]
[1773445162520,0.48483558,2092.7,2092.4,0.4736596]
[1773445162815,4.77771994,2093.1,2092.4,0.4736596]
[1773445162816,0.46712854,2093.0,2092.4,0.4736596]
[1773445164111,0.46712854,2093.0,2092.6,0.4736596]
[1773445164932,0.46712854,2092.9,2092.4,0.047792]
[1773445165131,0.46712854,2092.9,2092.3,2.9068298]
[1773445165624,0.46712854,2092.9,2092.3,3.3804894]
[1773445166119,1.19457186,2092.8,2092.5,0.001]
[1773445166319,0.46712854,2092.7,2092.5,0.001]
[1773445166829,0.46712854,2092.7,2092.3,1.713]
[1773445168291,0.46712854,2092.5,2092.3,1.713]
[1773445168720,1.66181457,2092.6,2092.3,1.713]
[1773445169117,0.46712854,2092.5,2092.3,1.713]
[1773445170209,1.19476173,2092.5,2092.3,1.713]
[1773445170424,0.46712854,2092.4,2092.3,1.713]
[1773445172021,0.46712854,2092.4,2092.0,0.001]
[1773445173104,0.46712854,2092.3,2092.0,1.688]
[1773445173710,0.46712854,2092.6,2092.1,0.52145846]
[1773445174991,0.46712854,2092.4,2092.1,0.04779886]
[1773445175227,0.46712854,2092.4,2092.0,1.688]
[1773445175723,0.46712854,2092.4,2092.1,0.04779886]
[1773445177522,1.66193019,2092.4,2092.1,0.52145846]
[1773445179106,0.46712854,2092.3,2092.0,1.688]
[1773445179620,0.46712854,2092.3,2092.0,2.88302702]
[1773445179803,0.46712854,2092.3,2092.0,3.35668662]
[1773445180406,0.002,2092.2,2092.0,3.35668662]
[1773445181739,0.002,2092.2,2092.1,0.04779886]
[1773445183428,0.002,2092.2,2092.1,1.24277041]
[1773445183620,0.002,2092.2,2092.1,0.04779886]
[1773445184028,0.002,2092.2,2092.1,0.52145846]
[1773445184230,0.002,2092.2,2092.1,1.71643001]
[1773445184526,0.002,2092.2,2092.1,0.52145846]
[1773445188712,0.46912854,2092.4,2092.2,0.47579094]
[1773445188713,0.002,2092.4,2092.2,0.47579094]
[1773445189435,1.6647294,2092.4,2092.1,0.04779886]
[1773445189629,0.46791509,2092.3,2092.0,2.88302833]
[1773445190719,1.66458333,2092.7,2092.1,0.5235898]
[1773445191041,0.46791509,2092.6,2092.2,0.47579094]
[1773445191241,0.46791509,2092.6,2092.3,0.04779429]
[1773445191450,0.46791509,2092.6,2092.3,0.52379816]
[1773445191736,0.4904026,2092.7,2092.3,0.52379816]
[1773445193250,0.53619689,2092.6,2092.0,1.688]
[1773445193543,0.53619689,2092.6,2092.1,0.04779886]
[1773445194053,0.53619689,2092.6,2092.0,2.88302337]
[1773445194054,0.53619689,2092.6,2092.0,0.001]
[1773445194426,0.53619689,2092.6,2091.8,0.001]
[1773445194427,0.74899166,2092.4,2091.8,0.001]
[1773445194624,0.4884026,2092.0,2091.5,0.001]
[1773445195127,0.4884026,2092.0,2090.3,0.0011]
[1773445195128,0.4884026,2091.5,2090.3,0.0011]
[1773445195433,0.4884026,2091.0,2090.3,0.0011]
[1773445196642,0.4884026,2090.9,2090.3,0.0011]
[1773445197658,0.4884026,2090.7,2090.3,0.0011]
[1773445199753,0.4884026,2090.6,2090.3,0.0011]
[1773445200271,0.4884026,2091.2,2090.3,0.47903226]
[1773445200471,0.4884026,2091.2,2090.5,0.47793226]
[1773445200662,0.4884026,2091.2,2090.6,0.52576541]
[1773445200863,0.4884026,2091.2,2090.6,0.47793226]
[1773445201052,0.4884026,2091.2,2090.7,0.04783086]
[1773445201568,0.4884026,2091.2,2090.6,0.47793226]
[1773445202341,1.19554301,2091.1,2090.6,1.67374311]
[1773445203167,1.68394561,2091.1,2090.6,1.67374311]
[1773445204267,0.4884026,2091.0,2090.6,1.19581085]
[1773445205368,0.4884026,2091.0,2090.6,0.47793226]
[1773445206570,0.4884026,2091.0,2090.4,5.26156486]
[1773445206872,0.4884026,2091.0,2090.5,0.47793226]
[1773445207663,0.4884026,2091.4,2090.7,0.47793226]
[1773445207967,0.4884026,2091.3,2090.9,0.47793226]
[1773445208171,0.4884026,2091.5,2090.9,0.47793226]
[1773445208355,0.4884026,2091.4,2090.9,0.47793226]
[1773445208548,0.4884026,2091.4,2091.0,1.19560019]
[1773445208754,0.4884026,2091.4,2091.0,1.67353245]
[1773445208980,0.4884026,2091.4,2091.1,0.0011]
[1773445209875,0.04779429,2091.5,2091.1,0.0011]